bitfinex/quotes_SOLUSD_20260213
["timestamp","ask_amount","ask_price","bid_price","bid_amount"]
[1770984267983,12.47852359,80.138,80.107,0.46855611]
[1770984268376,6.7,80.139,80.11,3.83701732]
[1770984268572,6.7,80.139,80.111,0.46855611]
[1770984269789,12.47747016,80.145,80.113,0.46855611]
[1770984270166,0.45273293,80.144,80.113,0.46855611]
[1770984270568,0.45273293,80.139,80.113,0.46855611]
[1770984273181,0.45273293,80.139,80.114,43.68774495]
[1770984273385,0.50079199,80.145,80.115,0.46739594]
[1770984274399,6.7,80.149,80.121,0.46739594]
[1770984274583,6.7,80.15,80.121,0.46739594]
[1770984274786,12.47676203,80.149,80.121,0.46739594]
[1770984275295,12.47676203,80.149,80.122,12.48096652]
[1770984275495,12.47676203,80.149,80.123,0.46739594]
[1770984275691,0.50079199,80.158,80.123,0.46739594]
[1770984275992,0.46653289,80.156,80.123,0.46739594]
[1770984276383,11.75003379,80.157,80.114,0.49027326]
[1770984277791,11.75003379,80.157,80.116,0.49027326]
[1770984278381,0.04507878,80.156,80.116,0.49027326]
[1770984278697,0.04507878,80.139,80.108,12.48301227]
[1770984278879,0.04507878,80.139,80.109,0.49027326]
[1770984279391,3.83701732,80.14,80.109,0.49027326]
[1770984279694,12.47831892,80.139,80.111,0.49027326]
[1770984281301,0.04590188,80.146,80.113,0.49027326]
[1770984282601,0.04980679,80.139,80.113,0.49027326]
[1770984283603,0.05366684,80.138,80.113,0.49027326]
[1770984284901,0.05366684,80.138,80.104,0.49027326]
[1770984285707,0.05366684,80.138,80.106,0.49027326]
[1770984286907,12.47755094,80.144,80.111,0.49027326]
[1770984287201,12.54253396,80.144,80.111,0.49027326]
[1770984287403,12.47755094,80.144,80.111,0.49027326]
[1770984287608,0.06866876,80.139,80.111,0.49027326]
[1770984288098,12.47806403,80.141,80.113,0.49027326]
[1770984288797,0.07231217,80.139,80.113,0.49027326]
[1770984292004,0.08299322,80.138,80.113,0.49027326]
[1770984292590,0.08299322,80.138,80.108,0.49027326]
[1770984294990,0.09331043,80.135,80.108,0.49027326]
[1770984295413,3.83588335,80.13,80.108,0.49027326]
[1770984296099,0.09331043,80.135,80.108,0.49027326]
[1770984297816,43.67575121,80.136,80.108,0.49027326]
[1770984297817,6.7,80.134,80.108,0.49027326]
[1770984298017,0.1032762,80.133,80.108,0.49027326]
[1770984298890,6.7,80.134,80.11,0.49027326]
[1770984299296,12.47925324,80.133,80.11,0.49027326]
[1770984300397,6.7,80.134,80.112,0.49027326]
[1770984300920,3.9429693,80.134,80.112,0.52675323]
[1770984302312,12.47925324,80.133,80.112,0.52675323]
[1770984304018,12.47925324,80.133,80.106,0.52675323]
[1770984304019,0.12522943,80.132,80.106,0.52675323]
[1770984304823,0.12822319,80.129,80.106,0.52675323]
[1770984309710,12.47925324,80.133,80.106,0.52675323]
[1770984310026,0.14268399,80.132,80.106,0.52675323]
[1770984310229,0.14268399,80.129,80.106,0.52675323]
[1770984311030,0.14268399,80.129,80.097,0.52675323]
[1770984312210,0.15096791,80.128,80.099,0.52675323]
[1770984313010,12.47987619,80.129,80.099,0.52675323]
[1770984313424,0.15366603,80.128,80.099,0.52675323]
[1770984316337,0.15366603,80.128,80.101,0.52675323]
[1770984317426,12.6444956,80.126,80.101,0.52675323]
[1770984318615,0.16669884,80.125,80.095,0.52675323]
[1770984318815,3.83588335,80.11,80.085,0.52675323]
[1770984319119,0.16669884,80.111,80.085,0.52675323]
[1770984319335,0.16921627,80.099,80.08,0.2]
[1770984319520,0.16921627,80.098,80.08,0.2]
[1770984319839,0.16921627,80.089,80.06,0.2]
[1770984320019,0.16921627,80.069,80.041,0.52675323]
[1770984320413,0.17170479,80.059,80.04,0.2]
[1770984320617,3.83588335,80.05,80.034,0.52675323]
[1770984320824,59.19588335,80.05,80.034,0.52675323]
[1770984321224,0.17170479,80.054,80.034,0.52675323]
[1770984321435,55.36,80.053,80.034,0.52675323]
[1770984321627,3.83588335,80.05,80.034,0.52675323]
[1770984321821,0.17416473,80.071,80.032,0.52675323]
[1770984322033,3.83588335,80.06,80.032,0.52675323]
[1770984322239,55.36,80.059,80.032,0.52675323]
[1770984322531,0.17659641,80.058,80.032,0.52675323]
[1770984323117,3.83588335,80.06,80.032,0.52675323]
[1770984323317,12.48965182,80.067,80.032,0.52675323]
[1770984323517,3.83588335,80.06,80.032,0.52675323]
[1770984323740,0.17900016,80.058,80.032,0.52675323]
[1770984323925,3.83588335,80.05,80.031,0.52675323]
[1770984324120,3.83588335,80.05,80.02,0.2]
[1770984324121,0.18137631,80.039,80.02,0.2]
[1770984324836,4.61729252,80.054,80.02,0.2]
[1770984324837,3.83588335,80.03,80.02,0.2]
[1770984325543,55.56372516,80.029,80.0,0.2]
[1770984325839,43.71830422,80.058,80.002,0.57559077]
[1770984326043,3.83588335,80.03,80.002,0.57559077]
[1770984326224,3.83588335,80.02,80.0,0.2]
[1770984326832,3.83588335,80.01,79.986,12.50207749]
[1770984327039,3.83588335,80.01,79.983,0.57559077]
[1770984327539,55.38,80.009,79.983,0.57559077]
[1770984327844,55.38,80.009,79.985,0.57559077]
[1770984328732,3.83588335,80.0,79.946,0.57559077]
[1770984328933,4.61729252,80.005,79.961,0.57559077]
[1770984329120,3.83588335,79.99,79.961,0.57559077]
[1770984329329,4.61729252,79.996,79.961,0.57559077]
[1770984329638,3.83588335,79.99,79.961,0.57559077]
[1770984329837,3.83588335,79.99,79.962,13.08153109]
[1770984330043,3.83588335,79.99,79.963,0.57559077]
[1770984330223,3.83588335,79.99,79.962,12.50594032]
[1770984330224,3.83588335,80.01,79.971,0.57559077]
[1770984330431,3.83588335,80.01,79.981,0.57559077]
[1770984330737,55.38,80.009,79.981,0.57559077]
[1770984331342,55.38,80.011,79.981,0.57559077]
[1770984331720,12.49625112,80.024,79.981,0.57559077]
[1770984331920,55.38,80.023,79.991,0.57559077]
[1770984332247,3.83588335,80.02,79.991,0.57559077]
[1770984334225,55.4,80.023,79.993,0.57559077]
[1770984334226,3.83588335,80.01,79.993,0.57559077]
[1770984334820,12.49656344,80.022,79.993,0.54293312]
[1770984335024,2.6773416,80.01,79.992,12.50125012]
[1770984335939,2.6773416,80.01,79.971,31.26097435]
[1770984336126,0.59062579,80.021,79.971,31.26097435]
[1770984336448,3.83588335,80.01,79.971,43.76550724]
[1770984337255,3.83588335,80.0,79.971,43.76550724]
[1770984337423,0.59062579,79.999,79.971,43.76550724]
[1770984337933,3.83588335,79.99,79.971,12.50453289]
[1770984338543,4.42650914,79.99,79.959,31.26568584]
[1770984338746,0.59062579,79.989,79.959,31.26568584]
[1770984339147,0.59062579,79.989,79.96,0.02108723]
[1770984340945,3.83588335,80.0,79.96,0.02108723]
[1770984341637,3.83588335,80.0,79.96,3.83588335]
[1770984341829,0.59062579,80.009,79.96,3.83588335]
[1770984343141,0.59062579,80.009,79.961,43.77133852]
[1770984346731,3.84837762,80.02,79.97,3.84837762]
[1770984346933,3.84837762,80.02,79.971,53.66]
[1770984347154,0.59062579,80.019,79.971,53.66]
[1770984347659,3.84837762,80.02,79.971,53.66]
[1770984348252,4.43900341,80.02,79.971,53.66]
[1770984348958,4.43900341,80.02,79.972,106.2872005]
[1770984350055,0.59062579,80.019,79.972,106.2872005]
[1770984350257,0.59062579,80.019,79.972,43.76531785]
[1770984351062,0.59062579,80.019,79.972,106.2872005]
[1770984351261,0.59062579,80.019,79.973,53.7]
[1770984353167,0.59062579,80.019,79.974,43.76422337]
[1770984353669,0.59062579,80.026,79.974,106.28454247]
[1770984353863,3.84837762,80.02,79.974,43.76422337]
[1770984354163,0.59062579,80.019,79.974,43.76422337]
[1770984355142,0.59062579,80.019,79.974,106.28454247]
[1770984357148,0.59062579,80.019,79.974,43.76422337]
[1770984357347,0.59062579,80.019,79.974,106.28454247]
[1770984358043,0.59062579,80.038,79.98,3.84837762]
[1770984358239,0.59062579,80.019,79.981,53.94]
[1770984358642,0.59062579,80.019,79.982,43.75984596]
[1770984359258,3.84837762,80.03,79.983,0.54085024]
[1770984360644,3.84837762,80.03,79.984,43.75875175]
[1770984360842,3.84837762,80.03,79.985,0.54357965]
[1770984361263,0.52519169,80.029,79.985,0.54357965]
[1770984361889,0.52519169,80.035,79.985,0.54357965]
[1770984362059,0.52519169,80.035,79.984,106.27125425]
[1770984362060,0.52519169,80.039,79.991,0.54357965]
[1770984362559,0.52519169,80.049,80.0,3.84837762]
[1770984362767,0.52519169,80.049,80.003,0.54357965]
[1770984363872,3.84837762,80.05,80.005,0.54357965]
[1770984364070,3.84837762,80.05,80.007,0.54357965]
[1770984364273,3.84837762,80.04,80.007,0.54357965]
[1770984364477,0.52519169,80.039,80.007,0.54357965]
[1770984364770,0.52519169,80.039,80.01,0.54357965]
[1770984366972,0.52519169,80.039,80.011,13.04186113]
[1770984367287,0.52519169,80.064,80.012,0.54357965]
[1770984367454,0.52519169,80.049,80.012,0.54357965]
[1770984367656,0.52519169,80.039,80.012,0.54357965]
[1770984368355,0.52519169,80.039,80.011,12.49828148]
[1770984368551,0.52519169,80.029,80.005,66.67910139]
[1770984368751,0.52519169,80.029,79.972,163.3]
[1770984368752,0.52519169,80.019,79.972,163.3]
[1770984369064,0.52519169,80.019,79.97,3.84837762]
[1770984369065,0.52519169,80.019,79.976,0.54357965]
[1770984369365,0.52519169,80.019,79.978,0.54357965]
[1770984369564,0.52519169,80.019,79.98,0.54357965]
[1770984370272,0.52519169,80.019,79.975,43.76367614]
[1770984370462,0.52519169,80.019,79.982,0.54357965]
[1770984370775,0.52519169,80.019,79.984,0.54357965]
[1770984371673,0.52519169,80.019,79.986,0.54357965]
[1770984372371,0.52519169,80.019,79.988,0.54357965]
[1770984373355,0.52519169,80.009,79.985,12.50234418]
[1770984374272,0.52519169,80.009,79.957,62.53303143]
[1770984374273,0.52519169,79.989,79.971,12.50453289]
[1770984375386,0.52519169,79.989,79.955,54.24]
[1770984375387,3.84837762,79.98,79.959,12.50640953]
[1770984375563,0.52519169,79.979,79.959,12.50640953]
[1770984376256,0.52519169,79.979,79.954,31.26788255]
[1770984377862,0.52519169,79.969,79.947,12.50828673]
[1770984379464,0.52519169,79.979,79.948,0.53537561]
[1770984379768,3.84837762,79.99,79.948,0.54357965]
[1770984379968,12.50038958,79.998,79.951,0.54357965]
[1770984380769,3.84837762,80.0,79.951,0.54357965]
[1770984381166,3.84837762,80.0,79.96,3.84837762]
[1770984381386,3.84837762,80.0,79.961,0.54357965]
[1770984381583,0.52519169,79.999,79.963,0.54357965]
[1770984382392,0.52519169,80.009,79.963,0.54357965]
[1770984383889,0.52519169,80.007,79.965,0.54357965]
[1770984384591,3.84837762,80.0,79.965,0.54357965]
[1770984384772,0.52519169,79.999,79.965,0.54357965]
[1770984385667,0.52519169,79.999,79.964,43.76969636]
[1770984385668,0.52519169,79.999,79.967,0.54357965]
[1770984386900,0.52519169,80.015,79.971,0.54357965]
[1770984387092,0.52519169,80.02,79.981,0.54357965]
[1770984387475,13.02222364,80.019,79.981,0.54357965]
[1770984387684,0.52519169,80.018,79.981,0.54357965]
[1770984387882,0.52519169,80.018,79.983,0.54357965]
[1770984388195,31.2380134,80.031,79.982,43.75984596]
[1770984388196,0.52519169,80.009,79.982,43.75984596]
[1770984389494,0.52519169,80.009,79.983,0.54357965]
[1770984390191,0.52519169,80.009,79.984,13.04608015]
[1770984391182,0.52519169,80.009,79.984,12.5025005]
[1770984392297,0.52519169,80.009,79.982,31.25703283]
[1770984392497,0.52519169,80.009,79.982,31.79963532]
[1770984393398,0.52519169,80.009,79.983,0.54260249]
[1770984394000,0.52519169,80.009,79.984,12.5025005]
[1770984397112,0.52519169,80.009,79.984,0.55115232]
[1770984399101,0.52519169,80.009,79.985,12.50234418]
[1770984399299,0.52519169,80.009,79.985,13.0534965]
[1770984400199,0.52519169,80.009,79.985,44.30935697]
[1770984400706,0.52015376,80.019,79.986,0.55115232]
[1770984400884,3.84837762,80.02,79.986,0.55115232]
[1770984400885,4.36853138,80.03,79.986,0.55115232]
[1770984401094,0.52015376,80.026,79.988,0.55115232]
[1770984403003,0.52015376,80.026,79.991,0.55115232]
[1770984403180,0.52015376,80.026,79.993,0.55115232]
[1770984404605,0.52015376,80.032,79.995,0.55115232]
[1770984405306,0.52015376,80.045,80.001,0.55115232]
[1770984406502,0.52015376,80.045,80.011,0.55115232]
[1770984406814,0.52015376,80.039,80.003,0.55115232]
[1770984406982,3.84530324,80.03,80.003,0.55115232]
[1770984407179,0.52015376,80.029,79.998,0.55115232]
[1770984407900,0.52015376,80.029,79.997,12.50046876]
[1770984408410,0.52015376,80.019,79.997,12.50046876]
[1770984408606,0.52015376,80.019,79.985,31.25582402]
[1770984408607,0.52015376,80.019,79.986,12.50218788]
[1770984408995,0.52015376,80.019,79.986,13.0533402]
[1770984409210,0.52015376,80.019,79.987,0.55115232]
[1770984409713,0.52015376,80.029,79.987,0.55115232]
[1770984409890,0.52015376,80.029,79.989,0.55115232]
[1770984410091,0.52015376,80.029,79.991,0.55115232]
[1770984412212,0.52015376,80.027,79.993,0.55115232]
[1770984415315,0.52015376,80.025,79.995,0.55115232]
[1770984417311,0.52015376,80.025,79.997,0.55115232]
[1770984418097,0.52015376,80.025,80.001,0.55115232]
[1770984418313,12.49625112,80.024,79.996,12.50062503]
[1770984418500,12.49625112,80.024,79.997,0.55115232]
[1770984418501,0.52015376,80.023,79.997,0.55115232]
[1770984420613,0.52015376,80.023,79.999,0.49807386]
[1770984421620,49.96092045,80.063,79.988,54.54]
[1770984421621,0.52863557,80.019,79.989,12.50171898]
[1770984422614,0.52863557,80.017,79.983,12.50265681]
[1770984422911,0.52863557,80.017,79.984,0.49807386]
[1770984425007,0.52863557,80.009,79.983,12.50265681]
[1770984425200,0.52863557,80.009,79.979,12.50324445]
[1770984427218,0.52863557,80.007,79.974,12.50406382]
[1770984427524,0.52863557,80.007,79.975,0.49807386]
[1770984428923,0.52863557,79.999,79.974,12.50406382]
[1770984429430,0.52863557,79.999,79.967,0.49807386]
[1770984429801,0.52863557,79.997,79.967,0.49807386]
[1770984430620,0.52863557,79.997,79.971,0.49807386]
[1770984431017,0.52863557,80.009,79.981,0.49807386]
[1770984431517,0.52863557,80.009,79.962,54.62]
[1770984431518,0.52863557,80.009,79.982,12.50281313]
[1770984431713,0.52863557,80.009,79.983,0.49807386]
[1770984433104,0.52863557,80.019,79.983,0.49807386]
[1770984433304,0.52863557,80.018,79.983,0.49807386]
[1770984435623,0.52863557,80.018,79.985,0.49807386]
[1770984435824,0.52863557,80.023,79.991,0.49807386]
[1770984438230,0.52863557,80.023,79.993,0.49807386]
[1770984438414,0.52863557,80.03,80.001,0.49807386]
[1770984439811,0.52863557,80.029,80.001,0.49807386]
[1770984440406,0.52863557,80.027,80.002,0.49807386]
[1770984441333,0.52863557,80.033,80.002,0.49807386]
[1770984442620,0.52863557,80.031,80.004,0.49807386]
[1770984444126,0.52863557,80.031,80.001,31.24960937]
[1770984444127,0.52863557,80.031,80.006,0.49807386]
[1770984444834,0.52863557,80.03,80.006,0.49807386]
[1770984445530,0.52863557,80.029,79.999,0.49807386]
[1770984446635,0.52863557,80.027,80.001,0.49807386]
[1770984449327,0.52863557,80.027,80.003,0.49807386]
[1770984451425,3.84530324,80.02,79.998,12.5003125]
[1770984451625,0.47989932,80.019,79.998,12.5003125]
[1770984452344,0.47989932,80.019,79.999,0.47424133]
[1770984452639,0.47989932,80.033,80.0,3.84530324]
[1770984452833,0.47989932,80.033,80.001,0.47424133]
[1770984453640,0.47989932,80.049,80.011,0.47424133]
[1770984454021,0.47989932,80.047,80.011,0.47424133]
[1770984454317,0.47989932,80.039,80.011,0.47424133]
[1770984455946,0.4862402,80.038,80.012,12.49812528]
[1770984456553,0.4862402,80.029,79.993,0.48943466]
[1770984456744,0.4862402,80.019,79.993,0.48943466]
[1770984458253,0.4862402,80.019,79.994,12.50093757]
[1770984458442,0.4862402,80.019,79.987,0.48943466]
[1770984459247,0.4862402,80.039,80.001,0.48943466]
[1770984459642,12.49441405,80.036,80.001,0.48943466]
[1770984459844,0.4862402,80.035,80.001,0.48943466]
[1770984460547,0.4862402,80.033,80.003,0.48943466]
[1770984462751,31.23106408,80.049,80.005,0.48943466]
[1770984463047,0.4862402,80.039,80.005,0.48943466]
[1770984464946,0.4862402,80.037,80.006,12.98849723]
[1770984465339,0.4862402,80.037,80.007,0.48943466]
[1770984466042,0.4862402,80.037,80.011,0.48943466]
[1770984468958,0.4862402,80.037,80.013,0.48943466]
[1770984469762,5.5875925,80.05,80.013,0.48943466]
[1770984469763,0.4862402,80.042,80.013,0.48943466]
[1770984473369,0.4862402,80.042,80.015,0.48943466]
[1770984475562,0.4862402,80.042,80.017,0.48943466]
[1770984477262,3.8446232,80.05,79.989,54.7]
[1770984477263,0.4862402,80.039,80.008,12.49875012]
[1770984479057,0.4862402,80.039,80.006,0.48943466]
[1770984480655,0.50845677,80.037,80.006,0.48943466]
[1770984482174,0.50845677,80.037,80.008,0.48050844]
[1770984482380,0.50845677,80.036,80.008,0.48050844]
[1770984483076,3.8446232,80.03,80.008,0.48050844]
[1770984483376,0.50845677,80.029,80.007,12.49890634]
[1770984483960,0.50845677,80.029,80.008,0.48050844]
[1770984484173,0.50845677,80.029,80.01,0.48050844]
[1770984485255,0.50845677,80.029,80.007,31.24726586]
[1770984485256,0.50845677,80.039,80.012,0.48050844]
[1770984488376,0.50845677,80.039,80.014,0.48050844]
[1770984490474,0.50845677,80.039,80.016,0.48050844]
[1770984492991,0.50845677,80.039,80.017,12.49734431]
[1770984493286,0.50845677,80.039,80.016,0.48050844]
[1770984493486,0.50845677,80.037,80.017,0.48050844]
[1770984494505,3.8446232,80.05,80.017,0.48050844]
[1770984494506,0.50845677,80.049,80.017,0.48050844]
[1770984495108,0.50845677,80.049,80.019,0.48050844]
[1770984495277,0.50845677,80.059,80.021,0.48050844]
[1770984495671,0.50845677,80.067,80.031,0.48050844]
[1770984495873,0.50845677,80.076,80.031,0.48050844]
[1770984496073,62.52231135,80.1,80.021,4.61729252]
[1770984496074,0.50845677,80.084,80.041,0.48050844]
[1770984496698,0.50845677,80.084,80.051,0.48050844]
[1770984496881,0.50845677,80.089,80.053,0.48050844]
[1770984497686,0.50845677,80.089,80.06,3.8446232]
[1770984497896,0.50845677,80.099,80.061,0.48050844]
[1770984498793,0.1,80.1,80.052,43.72158096]
[1770984498794,0.50845677,80.069,80.052,12.49188027]
[1770984498976,0.50845677,80.069,80.041,31.71427238]
[1770984499390,12.48938402,80.068,80.041,0.48050844]
[1770984499596,0.50845677,80.067,80.041,0.48050844]
[1770984500503,31.21526357,80.09,80.041,0.48050844]
[1770984500504,0.50845677,80.079,80.041,0.48050844]
[1770984501499,0.50845677,80.079,80.042,43.72704329]
[1770984501706,0.50845677,80.079,80.043,0.48050844]
[1770984502195,0.50845677,80.092,80.06,3.8446232]
[1770984502502,0.50845677,80.092,80.061,0.48050844]
[1770984504198,0.50845677,80.092,80.063,0.48050844]
[1770984504383,0.60845677,80.1,80.063,0.48050844]
[1770984505281,12.48455036,80.099,80.063,0.48050844]
[1770984505476,0.50845677,80.089,80.062,12.49032]
[1770984506300,0.50845677,80.089,80.059,0.48050844]
[1770984507586,0.50845677,80.088,80.059,0.48050844]
[1770984507788,0.50845677,80.088,80.061,0.48050844]
[1770984509787,0.50845677,80.086,80.062,12.49032]
[1770984510188,0.50845677,80.086,80.063,0.48050844]
[1770984510388,0.50845677,80.099,80.08,3.8446232]
[1770984510707,0.50845677,80.099,80.081,0.47709785]
[1770984511406,1e-08,80.13,80.093,0.47709785]
[1770984511607,3.84462321,80.13,80.093,0.47709785]
[1770984511806,3.8446232,80.12,80.081,0.47709785]
[1770984512048,3.8446232,80.12,80.082,12.48720061]
[1770984512049,16.32600732,80.12,80.082,12.48720061]
[1770984512193,16.32600732,80.12,80.083,0.47709785]
[1770984513289,0.49264706,80.119,80.083,0.47709785]
[1770984513485,0.49264706,80.109,80.082,12.48720061]
[1770984513693,0.49264706,80.099,80.069,0.47709785]
[1770984514496,0.49264706,80.099,80.07,0.47709785]
[1770984515691,0.46200253,80.089,80.069,12.48912231]
[1770984516820,0.46200253,80.089,80.064,43.71502797]
[1770984517112,0.46200253,80.099,80.065,0.48694447]
[1770984519015,0.46200253,80.099,80.066,12.97664047]
[1770984519213,0.46200253,80.099,80.067,0.48694447]
[1770984520220,3.8446232,80.09,80.067,0.48694447]
[1770984520403,0.46200253,80.089,80.067,0.48694447]
[1770984520717,0.46200253,80.079,80.052,0.48694447]
[1770984521098,0.46200253,80.079,80.019,4.61729252]
[1770984521099,0.46200253,80.079,80.044,0.48694447]
[1770984521324,0.46200253,80.069,80.044,12.98007324]
[1770984524124,0.46200253,80.069,80.045,0.48694447]
[1770984525506,0.46200253,80.075,80.045,0.48694447]
[1770984525829,0.46200253,80.088,80.047,0.48694447]
[1770984526122,0.46200253,80.087,80.047,0.48694447]
[1770984527216,0.46200253,80.086,80.047,0.48694447]
[1770984528224,0.46200253,80.086,80.051,0.48694447]
[1770984528631,0.46200253,80.098,80.051,0.48694447]
[1770984528933,0.46200253,80.109,80.071,0.48694447]
[1770984530022,0.46200253,80.109,80.073,0.48694447]
[1770984530423,0.46200253,80.119,80.081,0.48694447]
[1770984531715,0.46200253,80.119,80.083,0.48694447]
[1770984531917,0.46200253,80.109,80.082,12.48720061]
[1770984532420,3.8388606,80.1,80.082,12.48720061]
[1770984532615,0.46200253,80.099,80.069,0.48694447]
[1770984534731,53.0,80.117,80.07,12.48907206]
[1770984534732,0.46200253,80.089,80.07,12.48907206]
[1770984535441,0.46200253,80.099,80.071,0.48694447]
[1770984535634,0.46200253,80.089,80.066,0.48694447]
[1770984535836,0.46200253,80.089,80.06,0.48694447]
[1770984536132,3.8388606,80.08,80.06,0.48694447]
[1770984537323,3.8388606,80.08,80.061,12.49047601]
[1770984537324,0.46200253,80.079,80.061,12.49047601]
[1770984538232,0.46200253,80.079,80.057,12.49105193]
[1770984538531,0.46200253,80.079,80.058,0.48694447]
[1770984539444,0.46200253,80.079,80.059,12.49078804]
[1770984541337,0.46105726,80.069,80.044,0.47331287]
[1770984541523,0.46105726,80.069,80.046,0.47331287]
[1770984545255,0.46105726,80.069,80.048,0.47331287]
[1770984545557,0.46105726,80.079,80.048,0.47331287]
[1770984545925,12.48766842,80.079,80.048,0.47331287]
[1770984546146,3.8388606,80.08,80.048,0.47331287]
[1770984547143,0.46105726,80.079,80.048,0.47331287]
[1770984547331,0.46105726,80.079,80.047,12.49266056]
[1770984547332,0.46105726,80.077,80.05,0.47331287]
[1770984548224,3.8388606,80.08,80.05,0.47331287]
[1770984548431,3.8388606,80.09,80.051,0.47331287]
[1770984548842,0.46105726,80.093,80.061,0.47331287]
[1770984549630,12.48564151,80.092,80.063,0.47331287]
[1770984551554,0.46105726,80.099,80.065,0.47331287]
[1770984551760,3.8388606,80.1,80.065,0.47331287]
[1770984551936,3.8388606,80.1,80.064,43.71502797]
[1770984551937,0.46105726,80.102,80.071,0.47331287]
[1770984552447,0.46105726,80.108,80.071,0.47331287]
[1770984552949,0.46105726,80.115,80.081,0.47331287]
[1770984553327,0.46105726,80.099,80.067,0.47331287]
[1770984553729,0.46105726,80.099,80.069,0.47331287]
[1770984556157,0.46105726,80.105,80.071,0.47331287]
[1770984557834,0.46105726,80.119,80.081,0.47331287]
[1770984558169,0.46105726,80.119,80.091,0.47331287]
[1770984558339,0.46105726,80.119,80.093,0.47331287]
[1770984561052,0.46105726,80.117,80.094,12.48532973]
[1770984561457,0.46105726,80.117,80.094,12.9586426]
[1770984561642,0.46105726,80.117,80.095,0.47331287]
[1770984566165,0.46105726,80.117,80.096,12.48501797]
[1770984567043,3.8388606,80.12,80.096,0.47331287]
[1770984567459,1e-08,80.13,80.1,3.8388606]
[1770984567657,1e-08,80.13,80.086,31.21616949]
[1770984567658,1e-08,80.13,80.111,0.47331287]
[1770984569356,0.46105726,80.149,80.113,0.47331287]
[1770984571356,0.46105726,80.149,80.115,0.48064422]
[1770984572170,0.46105726,80.149,80.121,0.48064422]
[1770984573469,0.46105726,80.149,80.123,0.48064422]
[1770984577053,3.8388606,80.14,80.123,0.48064422]
[1770984577260,0.47891018,80.139,80.121,12.48104133]
[1770984579057,0.47891018,80.139,80.101,54.06]
[1770984579058,0.47891018,80.139,80.117,0.50481297]
[1770984579260,0.47891018,80.139,80.118,12.48158965]
[1770984579460,0.47891018,80.139,80.118,12.98640262]
[1770984579656,0.47891018,80.149,80.119,0.50481297]
[1770984581055,4.31777078,80.14,80.119,0.50481297]
[1770984581376,0.47891018,80.139,80.121,0.50481297]
[1770984582448,0.47891018,80.139,80.122,12.48096652]
[1770984583057,0.47891018,80.139,80.122,12.98577949]
[1770984583257,0.47891018,80.139,80.123,0.50481297]
[1770984584266,0.47891018,80.156,80.123,0.50481297]
[1770984584584,0.47891018,80.156,80.113,31.20555608]
[1770984584585,0.47891018,80.139,80.12,12.4811511]
[1770984584774,0.47891018,80.139,80.119,0.50481297]
[1770984585577,0.47891018,80.139,80.12,12.48127808]
[1770984586274,0.47891018,80.139,80.121,0.50481297]
[1770984587874,0.47891018,80.139,80.122,12.48096652]
[1770984588465,0.47891018,80.139,80.122,12.98577949]
[1770984590678,0.47891018,80.129,80.104,0.50481297]
[1770984592385,3.8370475,80.12,80.104,0.50481297]
[1770984592683,0.47891018,80.119,80.099,0.50481297]
[1770984592984,12.48145405,80.119,80.094,0.50481297]
[1770984593193,0.47891018,80.118,80.094,0.50481297]
[1770984593856,3.8370475,80.11,80.094,0.50481297]
[1770984594362,0.47891018,80.118,80.094,0.50481297]
[1770984594562,3.8370475,80.12,80.094,0.50481297]
[1770984595381,3.8370475,80.12,80.096,0.50481297]
[1770984598787,0.47891018,80.119,80.098,0.50481297]
[1770984600490,3.8370475,80.12,80.098,0.50481297]
[1770984600785,3.8370475,80.12,80.1,0.47761119]
[1770984600983,0.48576001,80.119,80.1,0.47761119]
[1770984601489,0.48576001,80.109,80.082,0.47761119]
[1770984602587,0.48576001,80.109,80.084,0.47761119]
[1770984603263,12.48314775,80.108,80.084,0.47761119]
[1770984603469,3.8370475,80.09,80.073,0.47761119]
[1770984603969,56.1170475,80.13,80.081,0.47761119]
[1770984604182,3.8370475,80.11,80.081,0.47761119]
[1770984604398,0.48576001,80.109,80.081,0.47761119]
[1770984604693,0.48576001,80.109,80.083,0.47761119]
[1770984605483,0.48576001,80.099,80.082,12.48720061]
[1770984606474,0.48576001,80.109,80.083,0.47761119]
[1770984607191,4.32280751,80.12,80.085,0.47761119]
[1770984607484,0.48576001,80.129,80.085,0.47761119]
[1770984608391,0.48576001,80.119,80.085,0.47761119]
[1770984608598,4.32280751,80.11,80.085,0.47761119]
[1770984609673,0.48576001,80.109,80.087,0.47761119]
[1770984610790,3.8370475,80.12,80.087,0.47761119]
[1770984610995,0.48576001,80.122,80.087,0.47761119]
[1770984611178,0.48576001,80.128,80.087,0.47761119]
[1770984611586,0.48576001,80.128,80.089,0.47761119]
[1770984611897,12.4801877,80.127,80.089,0.47761119]
[1770984612074,12.96594771,80.127,80.089,0.47761119]
[1770984613292,0.48576001,80.126,80.089,0.47761119]
[1770984613876,0.48576001,80.124,80.091,0.47761119]
[1770984615398,0.48576001,80.124,80.093,0.47761119]
[1770984618086,0.48576001,80.124,80.095,0.47761119]
[1770984619097,0.48576001,80.129,80.095,0.47761119]
[1770984619298,12.9656362,80.129,80.095,0.47761119]
[1770984619599,0.48576001,80.128,80.095,0.47761119]
[1770984620092,0.48576001,80.149,80.101,0.47761119]
[1770984620679,0.48576001,80.159,80.12,3.8370475]
[1770984620880,3.8370475,80.16,80.121,0.47761119]